bitfinex/quotes_ETHUSD_20240714
["timestamp","ask_amount","ask_price","bid_price","bid_amount"]
[1720960003537,0.97537715,3203.8,3203.7,2.49711]
[1720960003735,0.97537715,3203.8,3203.7,4.99422]
[1720960003896,0.81646974,3204.0,3203.8,2.49703]
[1720960003897,1.79184689,3204.0,3203.8,2.49703]
[1720960004219,0.65023239,3203.9,3203.8,4.99406]
[1720960004441,0.65023239,3203.9,3203.8,5.54406]
[1720960004819,1.46536248,3204.0,3203.9,4.9939]
[1720960008001,0.59863154,3204.0,3203.9,2.49695]
[1720960008191,0.48998533,3204.0,3203.9,2.49695]
[1720960008394,0.59863154,3204.0,3203.9,2.49695]
[1720960008723,1.89822232,3204.0,3203.9,2.49695]
[1720960008924,2.97942864,3204.0,3203.9,2.49695]
[1720960009305,2.97942864,3204.0,3203.4,8.59732]
[1720960009306,2.37878962,3204.0,3203.4,8.59732]
[1720960009504,1.2975833,3204.0,3203.6,2.49718]
[1720960009827,1.29979833,3203.8,3203.6,2.49718]
[1720960010140,0.10864621,3203.7,3203.6,2.49718]
[1720960010604,1.29979833,3203.7,3203.6,2.49718]
[1720960010989,0.10864621,3203.7,3203.6,2.49718]
[1720960011386,3.79294454,3203.7,3203.6,2.49718]
[1720960011622,3.57449005,3203.7,3203.2,2.49744]
[1720960011831,0.97497176,3203.3,3203.2,2.49744]
[1720960012136,1.29996235,3203.4,3203.3,2.49742]
[1720960012309,0.10866742,3203.4,3203.3,2.49742]
[1720960013227,1.40862977,3203.4,3203.3,2.49742]
[1720960013707,0.10866742,3203.4,3203.3,2.49742]
[1720960014323,1.29996235,3203.4,3203.3,2.49742]
[1720960014505,1.40862977,3203.4,3203.3,2.49742]
[1720960015405,1.29996235,3203.4,3203.3,2.49742]
[1720960016346,1.40862977,3203.4,3203.3,2.49742]
[1720960017006,1.40862977,3203.4,3203.1,2.49753]
[1720960017207,0.97540216,3203.2,3203.1,2.49753]
[1720960017906,0.97540216,3203.2,3203.1,3.307045]
[1720960021043,0.97540216,3203.2,3203.0,5.59762]
[1720960021346,1.29996235,3203.1,3202.8,9.07256154]
[1720960021556,0.97530134,3203.0,3202.8,2.49779]
[1720960021708,0.97530134,3203.0,3202.7,21.91785]
[1720960021709,0.97530134,3202.9,3202.7,21.91785]
[1720960021910,1.29996235,3202.9,3202.7,21.91785]
[1720960022127,1.40864882,3202.8,3202.7,21.91785]
[1720960022845,1.29996235,3202.8,3202.7,21.91785]
[1720960023051,1.29996235,3202.8,3202.7,19.42]
[1720960024162,1.29996235,3202.9,3202.7,19.42]
[1720960024375,1.40864882,3202.8,3202.7,19.42]
[1720960024724,3.57483282,3202.8,3202.7,19.42]
[1720960024927,5.20054102,3202.8,3202.7,19.42]
[1720960025166,5.20053686,3202.8,3202.7,19.42]
[1720960027403,5.20053686,3202.8,3202.3,12.17297154]
[1720960027570,0.65000121,3202.4,3202.3,12.17297154]
[1720960027773,0.65000121,3202.4,3202.3,2.4982]
[1720960028334,0.97500182,3202.5,3202.3,2.4982]
[1720960028746,0.97500182,3202.4,3202.3,2.4982]
[1720960029242,1.30000242,3202.6,3202.3,2.4982]
[1720960029243,0.97500182,3202.5,3202.3,2.4982]
[1720960029438,0.97500182,3202.4,3202.3,2.4982]
[1720960030261,0.97500182,3202.5,3202.3,2.4982]
[1720960030573,0.49019053,3202.4,3202.3,2.4982]
[1720960030892,2.2965,3202.3,3201.9,5.59848]
[1720960031031,1.2993045,3202.1,3201.8,21.91859]
[1720960031247,0.9744675,3201.9,3201.8,19.42]
[1720960031754,0.9744675,3201.9,3201.6,2.49868]
[1720960032079,0.9744675,3201.9,3201.4,2.49888]
[1720960032080,0.64955665,3201.7,3201.4,2.49888]
[1720960032421,0.64955665,3201.8,3201.4,3.85928827]
[1720960032559,0.64955665,3201.8,3201.4,2.49888]
[1720960032760,0.64955665,3201.6,3201.4,2.49888]
[1720960033165,0.64955665,3201.6,3201.2,12.17381154]
[1720960033166,0.9744675,3201.6,3201.2,12.17381154]
[1720960033489,0.64919129,3201.5,3201.2,12.17381154]
[1720960034448,0.64919129,3201.6,3201.2,12.17381154]
[1720960034648,0.64919129,3201.6,3201.2,14.60211808]
[1720960035159,0.64919129,3201.5,3201.2,14.60211808]
[1720960035492,0.64919129,3201.6,3201.2,14.60211808]
[1720960035693,0.64919129,3201.6,3201.2,12.17381154]
[1720960036052,0.64919129,3201.6,3201.2,5.59904]
[1720960036265,0.07808854,3201.5,3201.2,3.1]
[1720960036464,0.64919129,3201.5,3201.2,3.1]
[1720960036703,0.07809373,3201.6,3200.9,2.49928]
[1720960036704,0.64919129,3201.4,3200.9,2.49928]
[1720960037002,2.2965,3201.3,3201.0,0.55]
[1720960037306,0.07809699,3201.2,3200.8,6.57477154]
[1720960037621,3.02378828,3201.3,3200.8,6.57477154]
[1720960037910,3.14826129,3201.2,3200.8,6.57477154]
[1720960038116,0.64919129,3201.1,3200.8,6.57477154]
[1720960038293,0.72729754,3201.1,3200.8,6.57477154]
[1720960038467,0.07810625,3201.1,3200.8,6.57477154]
[1720960038688,0.72729754,3201.1,3200.8,6.57477154]
[1720960038993,3.14826129,3201.2,3200.8,6.57477154]
[1720960039405,2.49907,3201.2,3200.8,6.57477154]
[1720960039587,2.94569129,3201.3,3200.8,6.57477154]
[1720960039588,4.79549,3201.3,3200.8,6.57477154]
[1720960039925,0.64919129,3201.5,3200.8,7.11513331]
[1720960040121,0.64919129,3201.5,3200.9,2.49928]
[1720960040421,0.64919129,3201.6,3200.9,2.56175902]
[1720960040605,2.2965,3201.7,3201.1,2.49907]
[1720960044623,2.2965,3202.0,3201.2,2.56152364]
[1720960044919,0.9744675,3202.2,3201.5,2.49877]
[1720960044920,0.64919129,3202.2,3201.5,2.49877]
[1720960045091,0.97573531,3202.3,3201.6,0.06246583]
[1720960045300,0.32654402,3202.3,3201.7,0.55]
[1720960045691,0.32654402,3202.3,3201.5,0.55]
[1720960045999,0.32654402,3202.3,3201.5,0.61245939]
[1720960046523,2.78669053,3202.4,3201.5,0.61245939]
[1720960046524,0.49019053,3202.4,3202.0,2.4984]
[1720960047294,0.49019053,3202.4,3202.1,2.49832]
[1720960050326,0.49019053,3202.4,3202.1,2.997992]
[1720960050529,0.49019053,3202.4,3202.2,0.55]
[1720960051707,0.49019053,3202.4,3202.3,2.4982]
[1720960056099,0.49019053,3202.4,3201.8,19.42]
[1720960056100,2.94429053,3202.4,3201.8,19.42]
[1720960056332,1.72963622,3202.3,3201.8,19.42]
[1720960056512,3.14599332,3202.3,3201.8,19.42]
[1720960056712,1.72969242,3202.2,3201.8,19.42]
[1720960056941,0.64779332,3202.2,3201.8,19.42]
[1720960057226,1.72968974,3202.1,3201.8,19.42]
[1720960057423,0.64779332,3202.1,3201.8,19.42]
[1720960059326,1.7297118,3202.0,3201.8,19.42]
[1720960059531,0.64779332,3202.0,3201.8,19.42]
[1720960060043,0.64779332,3202.0,3201.5,2.49879]
[1720960060207,0.64779332,3202.0,3201.5,3.68165339]
[1720960060534,0.64884678,3202.0,3201.5,3.68165339]
[1720960060695,3.14733678,3202.0,3201.3,6.8309239]
[1720960061044,4.18486437,3201.9,3201.4,3.0]
[1720960061281,3.10294678,3201.9,3201.4,3.0]
[1720960062127,0.97534694,3201.8,3201.4,3.0]
[1720960062432,0.97534694,3201.8,3201.2,19.42]
[1720960062433,1.73091114,3201.7,3201.2,19.42]
[1720960062614,0.64884678,3201.3,3201.2,19.42]
[1720960062939,0.64884678,3201.3,3200.9,2.49928]
[1720960062940,1.08215743,3201.3,3200.9,2.49928]
[1720960063140,0.64907518,3201.2,3200.9,2.49928]
[1720960063442,0.64907518,3201.1,3200.7,2.49942]
[1720960063801,0.64907518,3201.1,3200.7,4.06855515]
[1720960064043,0.64907518,3201.1,3200.4,3.1]
[1720960064197,0.64907518,3200.7,3200.4,3.1]
[1720960064597,0.64907518,3200.6,3200.4,3.1]
[1720960064902,2.49968,3200.4,3200.3,6.57477154]
[1720960065097,2.81398605,3200.4,3199.9,19.42]
[1720960065414,0.64930102,3200.4,3199.9,21.92007]
[1720960065835,0.64930102,3200.6,3200.2,2.49984]
[1720960066201,0.64930102,3200.7,3200.5,2.49958]
[1720960066702,0.64930102,3200.8,3200.6,2.49949]
[1720960066899,0.97360898,3201.0,3200.6,2.49949]
[1720960066900,0.64930102,3201.0,3200.7,2.49945]
[1720960067104,0.64930102,3201.1,3200.8,2.49932]
[1720960067506,0.64930102,3201.0,3200.8,2.49932]
[1720960067826,0.64930102,3200.9,3200.6,2.49949]
[1720960068025,0.64930102,3200.8,3200.6,2.49949]
[1720960068439,0.64930102,3200.8,3200.4,3.04967]
[1720960068737,0.0781081,3200.9,3200.4,2.90425413]
[1720960068738,0.64930102,3200.7,3200.4,2.90425413]
[1720960068911,0.64930102,3200.8,3200.4,2.90425413]
[1720960069338,0.64930102,3200.7,3200.4,2.90425413]
[1720960069719,0.64930102,3200.8,3200.4,2.90425413]
[1720960070918,0.64930102,3200.7,3200.4,2.90425413]
[1720960071137,0.64930102,3200.7,3200.5,0.31542381]
[1720960071340,0.97360898,3200.9,3200.5,0.31542381]
[1720960071341,0.64930102,3200.8,3200.5,0.31542381]
[1720960071811,1.2981453,3201.1,3200.5,0.31542381]
[1720960071812,0.64930102,3201.0,3200.7,2.49945]
[1720960072235,0.64930102,3201.0,3200.5,0.31542381]
[1720960072548,0.64930102,3201.0,3200.3,0.249984]
[1720960072549,0.64930102,3201.1,3200.6,3.04952]
[1720960072776,0.64930102,3201.1,3200.8,2.4993]
[1720960073130,0.64930102,3201.2,3200.8,2.4993]
[1720960073333,0.64930102,3201.1,3200.8,2.4993]
[1720960073973,0.64930102,3201.2,3201.1,2.49914]
[1720960074675,0.97360898,3201.3,3201.2,2.49906]
[1720960075057,0.97360898,3201.3,3200.9,2.49925]
[1720960075377,0.64928272,3201.2,3200.9,2.749155]
[1720960075679,0.64928272,3201.1,3200.9,2.749155]
[1720960076035,0.64928272,3201.0,3200.9,2.749155]
[1720960076677,0.97360898,3201.1,3200.9,2.749155]
[1720960076678,0.64928272,3201.1,3200.9,2.749155]
[1720960077048,0.64928272,3201.1,3201.0,2.49921]
[1720960077454,0.97360898,3201.2,3201.0,2.49921]
[1720960077860,1.30005738,3201.2,3201.0,2.49921]
[1720960078381,0.97360898,3201.1,3200.7,2.49939]
[1720960078691,0.64947917,3200.8,3200.7,2.49939]
[1720960079246,0.64947917,3200.8,3200.7,3.65676215]
[1720960079570,0.64947917,3200.8,3200.7,2.49939]
[1720960079959,0.97360898,3200.9,3200.5,9.07433154]
[1720960080175,0.6494614,3200.6,3200.5,9.07433154]
[1720960080505,0.97360898,3200.6,3200.5,9.07433154]
[1720960080864,0.64938605,3200.6,3200.5,9.07433154]
[1720960081219,0.64938605,3200.6,3200.5,6.57477154]
[1720960081366,1.4604448,3200.6,3200.5,6.57477154]
[1720960081686,5.22953158,3200.6,3200.5,6.57477154]
[1720960081886,3.60612718,3200.6,3200.5,6.57477154]
[1720960082105,5.06660165,3200.6,3200.5,6.57477154]
[1720960082273,5.94335768,3200.6,3200.5,6.57477154]
[1720960082885,2.49962,3200.5,3199.8,2.50013]
[1720960083093,0.64889877,3200.0,3199.8,2.50013]
[1720960083275,0.64889877,3200.0,3199.6,2.50026]
[1720960083489,0.64889877,3200.0,3199.6,3.310324]
[1720960084215,0.64889877,3200.0,3199.4,3.1]
[1720960084377,0.64889877,3199.9,3199.4,2.5004]
[1720960084575,0.64889877,3200.0,3199.4,2.5004]
[1720960084796,0.64889877,3199.9,3199.5,2.50038]
[1720960085006,2.2526,3199.9,3199.2,2.50061]
[1720960085163,0.64889877,3199.7,3199.2,2.50061]
[1720960085363,0.64889877,3199.6,3199.2,2.50061]
[1720960085569,0.64889877,3199.6,3199.3,2.5005]
[1720960086068,0.64889877,3199.7,3199.3,2.5005]
[1720960086464,0.64889877,3199.8,3199.4,2.50046]
[1720960086708,0.64889877,3199.9,3199.6,2.50023]
[1720960086871,0.64889877,3200.0,3199.6,2.50023]
[1720960087073,0.64889877,3200.0,3199.5,0.250046]
[1720960087074,0.64889877,3200.1,3199.5,0.31255023]
[1720960087272,0.64889877,3200.1,3198.7,2.81394]
[1720960087273,2.50021,3199.8,3198.9,2.50079]
[1720960087568,2.301,3199.4,3198.7,0.313]
[1720960088215,2.301,3199.4,3198.8,2.50086]
[1720960088415,2.301,3199.4,3198.9,2.50084]
[1720960088617,2.301,3199.4,3199.0,2.5007]
[1720960088825,0.64889877,3199.5,3199.0,2.5007]
[1720960089157,0.64889877,3199.6,3199.0,2.5007]
[1720960089353,1.08290119,3199.5,3198.7,2.501]
[1720960089638,3.14926877,3199.6,3198.8,2.50093]
[1720960090444,0.64889877,3199.5,3198.8,2.50093]
[1720960090662,3.14926877,3199.6,3198.8,2.50093]
[1720960090947,0.49071971,3199.5,3198.8,2.50093]
[1720960091356,0.49071971,3199.5,3198.2,6.1]
[1720960091357,2.301,3199.3,3198.3,2.50132]
[1720960091508,0.07816301,3199.2,3198.4,3.0]
[1720960092209,2.57886301,3199.2,3198.2,3.1]
[1720960092542,2.50078,3199.0,3198.2,5.6014]
[1720960092743,0.07816812,3198.9,3198.2,5.6014]
[1720960093343,2.301,3198.8,3198.2,3.1]
[1720960093647,0.07816993,3198.7,3198.2,3.1]
[1720960094341,4.80195,3198.8,3198.2,3.1]
[1720960094653,2.82716866,3199.0,3198.3,2.50132]
[1720960094654,0.32638866,3199.0,3198.3,2.50132]
[1720960094817,0.32638866,3199.0,3198.5,2.5011]
[1720960095004,0.0781595,3198.9,3198.5,2.5011]
[1720960095207,0.0781595,3198.9,3198.2,5.6014]
[1720960095647,2.82718866,3199.0,3198.3,2.50132]
[1720960095942,0.32638866,3199.0,3198.5,2.50113]
[1720960096736,0.32638866,3199.0,3198.6,2.50109]
[1720960097148,0.32638866,3199.0,3198.8,2.50089]
[1720960097812,0.32638866,3199.0,3198.9,5.0017]
[1720960098838,0.32638866,3199.0,3198.9,8.5517]
[1720960099016,0.32638866,3199.0,3198.9,9.60102133]
[1720960099217,0.49071971,3199.5,3199.4,2.50046]
[1720960099520,0.81709342,3199.5,3199.4,2.50046]
[1720960100141,0.81709342,3199.5,3199.4,5.00092]
[1720960100550,0.81709342,3199.5,3199.4,5.55092]
[1720960100810,0.81709342,3199.5,3199.4,5.556012]
[1720960101035,0.49071971,3199.5,3199.4,5.556012]
[1720960101443,0.49071971,3199.5,3199.4,9.106012]
[1720960104379,0.49071971,3199.5,3199.4,8.556012]
[1720960105737,0.49071971,3199.5,3199.4,6.055552]
[1720960107646,0.49071971,3199.5,3199.4,8.556012]
[1720960108137,0.49071971,3199.5,3199.4,13.478412]
[1720960108338,0.49071971,3199.5,3199.4,15.978872]
[1720960111678,0.025,3200.0,3199.9,9.37921]
[1720960111896,0.025,3200.0,3199.9,13.317131]
[1720960112181,0.025,3200.0,3199.9,13.867131]
[1720960112386,0.025,3200.0,3199.9,16.367201]
[1720960112540,0.025,3200.0,3199.9,18.860601]
[1720960112946,0.025,3200.0,3199.9,19.173601]
[1720960116341,0.025,3200.0,3199.9,15.810531]
[1720960117543,0.025,3200.0,3199.9,16.673531]
[1720960117780,0.025,3200.0,3199.9,19.173601]
[1720960118903,0.025,3200.0,3199.9,16.360531]
[1720960119105,0.025,3200.0,3199.9,19.173601]
[1720960119284,0.025,3200.0,3199.9,16.673531]
[1720960120320,0.025,3200.0,3199.9,19.173601]
[1720960122124,2.61512426,3201.2,3201.1,2.49914]
[1720960122547,0.32642426,3201.2,3201.1,4.99828]
[1720960122981,2.2887,3201.5,3201.1,4.99822]
[1720960123187,2.2887,3201.5,3201.1,2.49908]
[1720960123188,0.0780949,3201.4,3201.1,2.49908]
[1720960123830,2.2887,3200.7,3200.2,6.57477154]
[1720960123985,2.49963,3200.5,3200.0,19.42]
[1720960124181,2.2887,3200.2,3199.8,6.57477154]
[1720960124430,0.30700279,3200.1,3199.8,6.57477154]
[1720960124592,2.93543926,3199.9,3199.8,6.57477154]
[1720960124796,2.93543926,3199.9,3199.5,3.1]
[1720960124797,2.50031,3199.6,3199.5,3.1]
[1720960124997,3.14691822,3199.6,3199.5,3.1]
[1720960125389,5.85297037,3199.6,3199.5,3.1]
[1720960125583,7.88475304,3199.6,3199.5,3.1]
[1720960125789,8.31694574,3199.6,3198.1,2.50143]
[1720960126021,2.2698,3199.2,3198.3,3.1]
[1720960126201,0.07815948,3199.1,3198.3,3.1]
[1720960127914,2.3479594,3199.2,3198.3,3.1]
[1720960128295,2.3479594,3199.2,3198.5,3.0]
[1720960129102,2.2698,3199.2,3198.5,3.0]
[1720960129403,0.64655998,3199.4,3199.0,2.50074]
[1720960129608,3.23963997,3199.6,3199.0,2.50074]
[1720960129609,2.91635998,3199.6,3199.0,2.50074]
[1720960129805,2.2698,3199.6,3199.0,2.50074]
[1720960131178,2.561436,3199.6,3199.0,2.50074]
[1720960132345,2.2698,3199.6,3199.1,2.50069]
[1720960132735,2.2698,3199.6,3198.9,2.50083]
[1720960132736,2.2698,3199.6,3199.2,2.50056]
[1720960133132,2.91635998,3200.0,3199.3,2.50054]
[1720960133333,2.2698,3200.0,3199.3,2.50054]
[1720960133672,2.2698,3200.0,3199.4,0.06250898]
[1720960133963,2.2698,3200.4,3199.4,0.06250898]
[1720960134129,2.2698,3200.4,3199.9,2.50001]
[1720960135335,2.2698,3200.4,3199.7,2.50016]
[1720960135541,2.3479326,3200.4,3199.7,2.50016]
[1720960135740,0.29944926,3200.3,3199.7,2.50016]
[1720960138566,0.32640136,3200.2,3199.5,2.50037]
[1720960138771,0.4045318,3200.2,3199.5,2.50037]
[1720960139846,2.9044018,3200.2,3199.3,2.50054]
[1720960140068,2.9044018,3200.2,3199.4,3.0]
[1720960140237,0.57036511,3200.1,3199.4,3.0]
[1720960140955,0.32640136,3200.2,3199.5,2.50036]
[1720960141159,0.40453402,3200.2,3199.5,2.50036]
[1720960141556,0.32640136,3200.2,3199.5,2.50036]
[1720960141761,0.32640136,3200.2,3199.7,2.5002]
[1720960144566,2.82625136,3200.2,3199.5,2.50036]
[1720960144773,3.65048049,3200.2,3199.5,2.50036]
[1720960146298,1.15063049,3200.2,3199.7,2.50021]
[1720960146472,0.32640136,3200.2,3199.7,2.50021]
[1720960148410,1.29624133,3200.2,3199.7,2.50021]
[1720960148569,0.64655998,3200.0,3199.5,2.50036]
[1720960149005,0.64655998,3199.8,3199.5,2.50036]
[1720960149302,2.3977,3199.7,3199.5,2.50036]
[1720960151005,0.64655998,3199.9,3199.5,2.50036]
[1720960151217,0.64655998,3200.0,3199.5,2.50036]
[1720960151394,0.64655998,3199.9,3199.5,2.50036]
[1720960151592,0.64655998,3199.8,3199.5,2.50036]
[1720960151776,0.64655998,3199.9,3199.5,2.50036]
[1720960152583,0.64655998,3200.0,3199.5,2.50036]
[1720960152772,0.64655998,3200.0,3199.6,0.550036]
[1720960152973,0.64655998,3200.1,3200.0,2.5]
[1720960153285,0.32640136,3200.2,3200.1,2.49992]
[1720960153795,0.32640136,3200.2,3200.1,4.99984]
[1720960154173,0.32640136,3200.2,3200.1,5.06233188]
[1720960154373,0.64655998,3200.6,3200.5,2.4996]
[1720960154604,0.97287457,3200.8,3200.5,2.4996]
[1720960154804,1.08232218,3200.7,3200.6,2.49953]
[1720960155309,0.97287457,3200.8,3200.5,2.4996]
[1720960155310,0.97287457,3200.8,3200.7,2.49945]
[1720960155730,2.05518876,3200.8,3200.7,2.49945]
[1720960156442,2.0551842,3200.8,3200.7,2.49945]
[1720960156805,2.05663921,3200.8,3200.7,2.49945]
[1720960157837,0.32631459,3200.8,3200.7,4.9989]
[1720960158001,0.64802053,3201.0,3200.9,2.49929]
[1720960158350,3.69374106,3201.3,3200.7,0.74985]
[1720960158351,0.64802053,3201.2,3201.1,2.49914]
[1720960158518,0.64802053,3201.4,3201.1,2.49914]
[1720960158719,1.0820929,3201.3,3201.1,2.49914]
[1720960158955,0.64802053,3201.4,3201.2,2.49906]
[1720960159245,0.64802053,3201.4,3201.3,2.49898]
[1720960159440,1.73008717,3201.4,3201.3,4.99796]
[1720960159642,0.64802053,3201.5,3201.4,2.4989]
[1720960159852,1.73008373,3201.5,3201.4,4.9978]
[1720960160016,0.3263043,3201.6,3201.5,2.49882]
[1720960160536,0.3263043,3201.6,3201.5,4.99764]
[1720960160748,0.3263043,3201.6,3201.5,7.99764]
[1720960161046,0.64802053,3202.2,3201.9,2.4985]
[1720960161400,0.64802053,3202.2,3202.0,2.49841]
[1720960162212,0.64802053,3202.3,3202.0,2.49841]
[1720960162805,0.64802053,3202.2,3201.7,2.49864]
[1720960163147,0.64802053,3202.1,3201.7,2.49864]
[1720960163913,2.47578312,3202.0,3201.7,2.49864]
[1720960164251,2.3977,3202.0,3201.5,3.0]
[1720960164443,2.3977,3202.0,3201.4,2.49887]
[1720960164444,2.3977,3202.0,3201.4,5.49887]
[1720960165042,0.64802053,3202.1,3201.7,2.49866]
[1720960165241,0.64802053,3202.2,3201.7,2.49866]
[1720960165402,0.64802053,3202.3,3201.7,2.49866]
[1720960165804,3.36973079,3202.4,3201.7,2.49866]
[1720960166046,0.64708461,3202.3,3201.7,2.49866]
[1720960166551,1.29843176,3202.3,3201.7,2.49866]
[1720960166756,1.29843176,3202.3,3201.6,3.0]
[1720960166757,0.64708461,3202.2,3201.6,3.0]
[1720960166908,0.72517111,3202.2,3201.5,2.49881]
[1720960167110,0.72517111,3202.2,3201.4,3.0]
[1720960167111,3.22346111,3202.2,3201.3,2.49896]
[1720960167332,0.64708461,3202.0,3201.3,2.49896]
[1720960167543,0.73255202,3201.9,3201.4,2.4989]
[1720960167711,1.37963663,3201.9,3201.4,2.4989]
[1720960170019,0.73255202,3201.9,3201.4,2.4989]
[1720960170944,1.37963663,3201.9,3201.4,2.4989]
[1720960171346,1.30154558,3201.9,3201.4,2.4989]
[1720960171518,0.65446097,3201.9,3201.4,2.4989]
[1720960172555,0.07809083,3201.8,3201.4,2.4989]
[1720960173334,0.64708461,3202.0,3201.4,2.4989]
[1720960173750,0.64708461,3202.0,3201.4,2.998644]
[1720960173915,3.28772692,3202.1,3201.6,2.49867]
[1720960173916,2.3171,3202.1,3201.6,2.49867]
[1720960174565,2.96418461,3202.1,3201.6,2.49867]
[1720960174854,0.64708461,3202.0,3201.6,2.49867]
[1720960175409,0.64708461,3202.0,3201.7,2.49864]
[1720960175612,2.3171,3202.1,3201.7,2.49864]
[1720960176017,2.96414062,3202.1,3201.7,2.49864]
[1720960176217,1.04051078,3202.0,3201.7,2.49864]
[1720960178259,0.64704062,3201.8,3201.4,2.49889]
[1720960178425,0.72513139,3201.8,3201.4,2.49889]
[1720960178626,2.96451932,3201.7,3201.1,2.49913]
[1720960178855,0.64741932,3201.6,3201.1,2.49913]
[1720960179361,3.44398989,3201.7,3201.1,5.49913]
[1720960179858,3.36589323,3201.7,3201.1,5.49913]
[1720960180158,3.36589323,3201.7,3201.1,2.49913]
[1720960180159,2.96451932,3201.7,3201.1,2.49913]
[1720960181254,1.08207696,3201.6,3201.1,2.49913]
[1720960181567,2.96451932,3201.7,3201.1,2.49913]
[1720960182066,1.08207707,3201.6,3201.1,2.49913]
[1720960182239,1.08207707,3201.5,3201.1,2.49913]
[1720960182428,1.08207707,3201.6,3201.1,2.49913]
[1720960185257,1.08207661,3201.5,3201.1,2.49913]
[1720960185493,0.72580111,3201.5,3201.1,2.49913]
[1720960185639,1.0821609,3201.4,3201.1,2.49913]
[1720960185841,1.0821609,3201.3,3201.1,2.49913]
[1720960186477,0.64770454,3201.6,3201.1,2.49913]
[1720960186698,1.08207641,3201.5,3201.1,2.49913]
[1720960186853,1.08207641,3201.4,3201.1,2.49913]
[1720960187052,1.08207641,3201.5,3201.1,2.49913]
[1720960188299,2.3171,3201.7,3201.1,2.49913]
[1720960188481,1.73011389,3201.6,3201.1,2.49913]
[1720960188656,1.08207858,3201.5,3201.1,2.47413]
[1720960188856,1.73011389,3201.5,3201.1,2.47413]
[1720960189059,1.08207858,3201.4,3201.1,2.47413]
[1720960189772,1.08207858,3201.4,3201.3,2.49898]
[1720960189994,1.08207858,3201.5,3201.4,2.4989]
[1720960190153,0.64803531,3201.7,3201.5,2.49879]
[1720960190355,1.08196277,3201.6,3201.5,2.49879]
[1720960191670,1.08195723,3201.6,3201.5,2.49878]
[1720960192505,1.08195723,3201.6,3201.5,2.748658]
[1720960192656,0.64849616,3201.9,3201.7,2.49862]
[1720960192863,1.08185277,3201.8,3201.7,2.49862]
[1720960193625,1.73034893,3201.8,3201.7,2.49862]
[1720960193810,1.35216209,3201.8,3201.7,2.49862]
[1720960194229,2.32490633,3201.8,3201.7,2.49862]
[1720960194403,2.05459701,3201.8,3201.7,2.49862]
[1720960194802,2.05471896,3201.8,3201.7,2.49862]
[1720960195238,0.10872451,3201.8,3201.7,2.49862]
[1720960195526,1.19068484,3201.8,3201.7,2.49862]
[1720960196088,2.48767717,3201.8,3201.7,2.49862]
[1720960196293,1.19068484,3201.8,3201.7,2.49862]
[1720960196496,3.81517182,3201.8,3201.5,2.49878]
[1720960196793,1.29919873,3201.6,3201.5,2.49878]
[1720960197022,2.05636527,3201.6,3201.5,2.49878]
[1720960197208,2.05636527,3201.6,3201.2,5.49905]
[1720960197209,1.19068862,3201.6,3201.3,2.49893]
[1720960197422,2.05686522,3201.5,3201.3,2.49893]
[1720960197597,1.08196033,3201.4,3201.3,2.49893]
[1720960197931,0.97490489,3201.5,3201.3,2.49893]
[1720960198161,2.05691971,3201.4,3201.2,5.49905]
[1720960198366,0.97490489,3201.4,3201.2,2.49905]
[1720960198721,2.05692795,3201.3,3201.2,2.49905]
[1720960199124,1.19076528,3201.3,3201.2,2.49905]
[1720960200237,2.49142169,3201.3,3201.2,2.49905]
[1720960200841,1.19076827,3201.3,3201.2,2.49905]
[1720960201020,2.38367875,3201.3,3201.2,2.49905]
[1720960201355,2.70908938,3201.3,3201.0,5.5992]
[1720960201657,1.42913615,3201.2,3201.0,2.4992]
[1720960201856,1.19076827,3201.1,3201.0,2.4992]
[1720960203661,1.19094804,3201.1,3201.0,2.4992]
[1720960203842,2.81829631,3201.1,3201.0,2.4992]
[1720960204020,1.41068318,3201.1,3201.0,2.4992]
[1720960204221,1.62734827,3201.2,3201.1,2.49914]
[1720960204566,2.70945418,3201.2,3201.1,2.49914]
[1720960204721,2.81819316,3201.2,3201.1,2.49914]
[1720960205373,1.19084489,3201.2,3201.1,2.49914]
[1720960206154,1.19089529,3201.2,3201.1,2.49914]
[1720960206358,2.70987393,3201.2,3201.1,2.49914]
[1720960206520,2.81861291,3201.2,3201.1,2.49914]
[1720960206720,0.10873898,3201.2,3201.1,2.49914]
[1720960206924,2.70980574,3201.2,3201.1,5.06075327]
[1720960207161,2.81854472,3201.2,3201.1,4.99828]
[1720960207334,2.81866056,3201.2,3201.1,4.99828]
[1720960209765,2.81899925,3201.2,3201.1,4.99828]
[1720960209961,1.19084419,3201.2,3201.1,4.99828]
[1720960210140,2.71029957,3201.2,3201.1,4.99828]
[1720960210329,2.81903855,3201.2,3201.1,4.99828]
[1720960210532,0.97707848,3201.3,3201.2,1.879]
[1720960210780,0.97707848,3201.3,3201.2,11.86668]
[1720960210781,0.65141412,3201.3,3201.2,11.86668]
[1720960211062,0.97707848,3201.6,3201.4,4.3779]
[1720960211265,0.97707848,3201.6,3201.5,4.99764]
[1720960211437,0.97707848,3201.7,3201.6,4.9975]
[1720960211632,1.30263545,3201.8,3201.7,4.99734]
[1720960212032,1.30263545,3201.8,3201.7,7.99734]
[1720960212456,1.30263545,3201.9,3201.8,4.99718]
[1720960212665,1.30263545,3201.9,3201.8,7.99718]
[1720960212840,1.30263545,3201.9,3201.8,11.038898]
[1720960213644,1.95371329,3202.4,3201.8,6.041718]
[1720960213645,1.30263545,3202.0,3201.8,6.041718]
[1720960213995,1.30263545,3202.0,3201.9,4.99702]
[1720960214290,1.95371329,3202.4,3201.9,2.49851]
[1720960214441,1.95371329,3202.4,3202.1,2.49833]
[1720960214642,1.95371329,3202.4,3202.2,2.49825]
[1720960214873,1.95371329,3202.5,3202.2,2.49825]
[1720960215083,0.32619947,3202.3,3202.2,2.49825]
[1720960215292,0.32619947,3202.3,3201.8,5.49851]
[1720960215448,1.95371329,3202.2,3201.8,2.49851]
[1720960215650,1.95371329,3202.1,3201.8,2.49851]
[1720960215840,0.34808433,3202.0,3201.6,2.49873]
[1720960216046,4.22951329,3202.1,3201.6,2.49873]
[1720960216347,0.34804147,3202.0,3201.6,2.49873]
[1720960216572,4.22928436,3202.1,3201.6,2.49873]
[1720960216762,2.30154115,3202.0,3201.6,2.49873]
[1720960217179,4.7118935,3202.1,3201.6,2.49873]